Cogmind - Beta 10.2 @@@ ROGUE MODE // 2021.05.07 @ 15:18:54 Player: ChromeKnight Result: Destroyed by G-47 Trooper with Particle Gun Performance ------------- Evolutions (0) 0 Regions Visited (1) 200 Robots Destroyed (7) 35 Value Destroyed (200) 200 Prototype IDs (0) 0 Alien Tech Used (0) 0 Bonus (0) 0 TOTAL SCORE: 435 Bonus ------- None Cogmind --------- Core Integrity 0/250 Matter 290/300 Energy 100/100 System Corruption 0% Temperature Cool (9) Movement Core (300) Ox5 Location -10/Materials Parts ------- > --- POWER (1) -------- (None) > --- PROPULSION (2) --- (None) > --- UTILITY (2) ------ Large Storage Unit Targeting Computer > --- WEAPON (2) ------- Hammer > --- INVENTORY (10) --- Hover Unit Small Storage Unit ECM Suite EM Pulse Gun Grenade Launcher Peak State ------------ > --- POWER ------------ Ion Engine > --- PROPULSION ------- Aluminum Leg Aluminum Leg > --- UTILITY ---------- Small Storage Unit Large Storage Unit > --- WEAPON ----------- Assault Rifle Light Assault Rifle > --- INVENTORY -------- EM Pulse Gun Grenade Launcher [Rating: 7] Favorites ----------- Power Ion Engine Engine Ion Engine Propulsion Aluminum Leg Leg Aluminum Leg Utility Large Storage Unit Storage Large Storage Unit Processor Targeting Computer Weapon Assault Rifle Ballistic Gun Assault Rifle Impact Weapon Hammer Build | -11 -10 ------- Run | Scr Mat Slots Evolved . | . . Power . | . . Propulsion . | . . Utility . | . . Weapon . | . . Parts Attached 10 | 6 4 Power 2 | 1 1 Engine 2 | 1 1 Core . | . . Reactor . | . . Propulsion 2 | 2 . Treads . | . . Leg 2 | 2 . Wheel . | . . Hover . | . . Flight . | . . Utility 3 | 1 2 Device . | . . Storage 2 | 1 1 Processor 1 | . 1 Hackware . | . . Protection . | . . Artifact . | . . Weapon 3 | 2 1 Energy Gun . | . . Energy Cannon . | . . Ballistic Gun 2 | 2 . Ballistic Cannon . | . . Launcher . | . . Special Weapon . | . . Impact Weapon 1 | . 1 Slashing Weapon . | . . Piercing Weapon . | . . Special Melee Weapon . | . . Unidentified Prototypes . | . . Parts Lost 5 | . 5 Power 1 | . 1 Propulsion 2 | . 2 Utility . | . . Weapon 2 | . 2 Highest Loss Streak 5 | . 5 Average Slot Usage (%) 89 | . 89 Engine 12 | . 12 Leg 25 | . 25 Storage 14 | . 14 Processor 10 | . 10 Ballistic Gun 25 | . 25 Naked Turns . | . . Heaviest Build 24 | 12 24 Greatest Support 20 | 20 20 Greatest Overweight (x) 5 | . 5 Average Overweight (x) . | . . Largest Inventory Capacity 12 | 6 12 Average Capacity 8 | 5 9 Most Carried 6 | 1 6 Average Carried 3 | . 3 Final Capacity 10 | 6 10 Final Carried 5 | 1 5 Class Distribution -------------------- 100% | Mutant Dominant Class ---------------- Mutant | -10/Materials Resources | -11 -10 ----------- Run | Scr Mat Matter Collected 368 | 240 128 Remotely . | . . Salvage Created 284 | . 284 Parts 15 | . 15 Haulers Intercepted . | . . Recyclers Shooed . | . . Parts Field Recycled . | . . Retrieved Matter . | . . Parts Self-Destructed . | . . Prevented . | . . Kills | -11 -10 ------- Run | Scr Mat Combat Hostiles Destroyed 5 | . 5 Guns 5 | . 5 Classes Destroyed 3 | . 3 Worker 1 | . 1 Watcher 1 | . 1 Grunt 5 | . 5 Best Kill Streak 5 | . 5 Combat Bots Only 2 | . 2 Max Kills in Single Turn 1 | . 1 Gunslinging . | . . Exploded . | . . Melee . | . . Uniques/NPCs Destroyed . | . . Combat | -11 -10 -------- Run | Scr Mat Damage Taken 785 | . 785 Core 252 | . 252 Absorbed by Shields . | . . Core Remaining (%) 100 | 100 . Volleys Fired 25 | 1 24 Largest 2 | 2 2 Hottest 40 | 40 40 Shots Fired 48 | 2 46 Gun 48 | 2 46 Cannon . | . . Launcher . | . . Special . | . . Kinetic 48 | 2 46 Thermal . | . . Explosive . | . . Electromagnetic . | . . Robot Hit Streak 10 | . 10 Robot Miss Streak 2 | 2 2 Penetration Max . | . . Secondary Targets 3 | . 3 Max Gunslinging Chain 1 | . 1 Shots Hit Robots 40 | . 40 Core Hits 15 | . 15 Critical Hits 1 | . 1 Critical Kills . | . . Critical Parts Destroyed 1 | . 1 Melee Attacks 4 | . 4 Impact 4 | . 4 Slashing . | . . Piercing . | . . Sneak Attacks . | . . Combat Hostiles . | . . Follow-up Attacks . | . . Damage Inflicted 425 | . 425 Guns 379 | . 379 Cannons . | . . Explosions . | . . Melee 46 | . 46 Ramming . | . . Kinetic 379 | . 379 Thermal . | . . Explosive . | . . Electromagnetic . | . . Impact 46 | . 46 Slashing . | . . Piercing . | . . Highest Corruption . | . . Average Corruption . | . . Corruption Purged . | . . Overload Shots . | . . Overflow Damage . | . . Projectiles . | . . Explosions . | . . Melee . | . . Knockbacks 1 | . 1 Impact 1 | . 1 Kinetic . | . . Secondary . | . . Self-Inflicted Damage . | . . Shots . | . . Rammed . | . . Targets Rammed . | . . Kicked . | . . Crushed . | . . Highest Temperature 24 | . 24 Average Temperature 9 | . 9 Received Heat Transfer 441 | . 441 Siege Activations . | . . Robots Corrupted . | . . Combat Hostiles . | . . Parts Fried . | . . Impact Corruptions . | . . Robots Melted . | . . Combat Hostiles . | . . Parts Melted . | . . Heat Transferred . | . . Parts Sabotaged . | . . Parts Stolen . | . . Parts Stripped . | . . Power Chain Reactions . | . . Missiles Intercepted . | . . Alert | -11 -10 ------- Run | Scr Mat Peak Influence 171 | . 171 Initial . | . . Average 54 | . 63 Maximum Alert Level . | . . Low Security (%) 100 | 100 100 Level 1 . | . . Level 2 . | . . Level 3 . | . . Level 4 . | . . Level 5 . | . . High Security . | . . Max Security . | . . Squads Dispatched 2 | . 2 Investigation 1 | . 1 Extermination . | . . Reinforcement 1 | . 1 Assault . | . . Garrison . | . . Intercept . | . . Construction Impeded . | . . Haulers Reinforced . | . . Stealth | -11 -10 --------- Run | Scr Mat Distress Signals . | . . Communications Jammed . | . . Distress Signals . | . . Times Spotted 9 | . 9 Peak Tracking Total 3 | . 3 Tactical Retreats . | . . Traps | -11 -10 ------- Run | Scr Mat Traps Triggered 1 | . 1 Indirectly . | . . Trap Hack Attempts . | . . Triggered . | . . Disarmed . | . . Reprogrammed . | . . Reused . | . . Traps Extracted . | . . Installed . | . . Triggered . | . . Machines | -11 -10 ---------- Run | Scr Mat Machines Disabled . | . . Max in Single Turn . | . . Machines Sabotaged . | . . Garrisons Compromised . | . . Overloaded Fab Kills . | . . Fab Network Shutdowns . | . . Hacking | -11 -10 --------- Run | Scr Mat Machines Accessed 4 | . 4 Terminals 4 | . 4 Fabricators . | . . Repair Stations . | . . Recycling Units . | . . Scanalyzers . | . . Garrison Access . | . . Total Hacks 6 | . 6 Successful 2 | . 2 Failed 4 | . 4 Catastrophic 1 | . 1 Database Lockouts . | . . Manual 4 | . 4 Terminals 6 | . 6 Fabricators . | . . Repair Stations . | . . Recycling Units . | . . Scanalyzers . | . . Garrison Access . | . . Terminal Hacks . | . . Fabricator Hacks . | . . Repair Station Hacks . | . . Recycling Unit Hacks . | . . Scanalyzer . | . . Garrison Access Hacks . | . . Unauthorized Hacks 2 | . 2 Terminals 2 | . 2 Track 1 | . 1 Operators 1 | . 1 Fabricators . | . . Repair Stations . | . . Recycling Units . | . . Scanalyzers . | . . Garrison Access . | . . Data Cores Recovered . | . . Used . | . . Hacking Detections 3 | . 3 Full Trace Events 1 | . 1 Feedback Events . | . . Feedback Blocked . | . . Robot Schematics Acquired . | . . Robots Built . | . . Matter . | . . Time . | . . Total Robot Build Rating . | . . Part Schematics Acquired . | . . Parts Built . | . . Matter . | . . Time . | . . Total Part Build Rating . | . . Parts Repaired . | . . Time . | . . Parts Recycled . | . . Recycled Matter . | . . Retrieved Matter . | . . Retrieved Components . | . . Parts Scanalyzed . | . . Part Schematics Acquired . | . . Parts Damaged . | . . Bothacking | -11 -10 ------------ Run | Scr Mat Used RIF Installer . | . . Robots Hacked . | . . Non-combat . | . . Combat . | . . Robot Hacks Applied . | . . Relay Couplers Released . | . . Robots Rewired . | . . Allies Hacked . | . . Hacks Repelled . | . . Allies | -11 -10 -------- Run | Scr Mat Total Allies . | . . Largest Group . | . . Highest-Rated Group . | . . Highest-Rated Ally . | . . Total Orders . | . . Ally Attacks . | . . Total Damage . | . . Kills . | . . Allies Corrupted . | . . Allies Melted . | . . Intel | -11 -10 ------- Run | Scr Mat Robot Analysis Total . | . . Derelict Logs Recovered . | . . Drone Launches . | . . Drone Recoveries . | . . Exploration | -11 -10 ------------- Run | Scr Mat Turns Passed 412 | 57 355 Spaces Moved 198 | 39 159 Core 8 | 3 5 Treads . | . . Legs 190 | 36 154 Wheels . | . . Hover . | . . Flight . | . . Fastest Speed 50 | 50 120 Average Speed 139 | 114 145 Slowest Speed 300 | 120 300 Overloaded Moves . | . . Propulsion Burnouts . | . . Robots Hopped . | . . Cave-ins Triggered . | . . Exploration Rate (%) 20 | 4 36 Regions Visited 1 Branch Regions . Pre-discovered Areas . | . . Known Exits Taken . | . . Unknown Exits Taken 1 | 1 . Scrap Searched . | . . Spaces Dug . | . . Terrain Destroyed . | . . Melee . | . . Projectile . | . . AOE . | . . Terrain Rammed . | . . Walls Destroyed . | . . Machines Disabled . | . . Actions | -11 -10 --------- Run | Scr Mat Total 280 | 46 234 Wait 38 | . 38 Move 197 | 38 159 Hop . | . . Pick Up 4 | 1 3 Fast Attach 9 | 6 3 Attach . | . . Detach 1 | . 1 Swap 1 | . 1 Drop 1 | . 1 Fire 25 | 1 24 Melee 4 | . 4 Ram . | . . Kick . | . . Crush . | . . Escape Stasis . | . . Rewire . | . . Trap . | . . Miscellaneous . | . . Route ------- -11/Scrapyard -10/Materials History --------- Turn | Location | Event 4 | -11/Scrapyard | Discovered new exit (range 15) 58 | -11/Scrapyard | Entered Materials 312 | -10/Materials | Build established: Mutant 390 | -10/Materials | Core integrity fell below 50% 410 | -10/Materials | Core integrity fell below 20% 413 | -10/Materials | Destroyed by G-47 Trooper with Particle Gun Last Messages --------------- 00333_ Dropped Ion Engine. 00334_ R-06 Scavenger collects Ion Engine. 00339_ R-06 Scavenger collects Sensor Array. 00346_ Acquired 10 matter. 00363_ G-47 Trooper suffers critical hit. 00363_ Destroyed Aluminum Leg. 00366_ G-47 Trooper destroyed. 00366_ Switching to secondary target: G-34 Mercenary. 00371_ ALERT: Hostiles spotted, dispatching reinforcements to Terminal M001. 00378_ Lgt. Assault Rifle destroyed. 00379_ R-06 Scavenger collects Aluminum Leg. 00382_ Lgt. Ion Engine destroyed. 00383_ Aluminum Leg destroyed. 00383_ Assault Rifle destroyed. 00384_ Acquired 10 matter. 00387_ Aluminum Leg destroyed. 00390_ R-06 Scavenger collects Imp. Heat Sink. 00402_ Acquired Hammer. 00404_ G-34 Mercenary knocked back. Map ----- +----------------------------------------------------+ | ?????????????????????????????????????????????????? | | ?????????????????????????????????????????????????? | | ?????????????????????????????????????????????????? | | ?????????????????????????????????????????????????? | | ?????????????????????????????????????????????????? | | ?????????o???????????????????????????????????????? | | ?????????????????????????????????????????????????? | | ?????????????????????????????????????????????????? | | ?????????????????????????????????????????????????? | | ????????????? ????????????????????????????????? | | ?????????????? ????????????????????????????????? | | ???????? ??? ????????????????????????????????? | | ?????? ??? ????????????????????????????????? | | ?????? #?????????????????? #??????????? | | ?????? """ "????????????????? #??????????? | | ???????|| "Y" T???????????????## #??????????? | | ???????|| "?????????????? ???????????? | | ????????| #????????????? ????????????? | | ??????? #????????????? ??????????????? | | ?????????? #???????????? #####???????????? | | ?????#?#####?# ##########+## !!#???????????? | | ??? #?# % !!#???????????? | | """ #?# //#???????????? | | """"" #?# //#???????????? | | """"" #?# ##########+###### [[#???????????? | | """"" #?# #??????#@g #?????????????????? | | """ #?# #??????# g""" #?????????????????? | | #?# #??????# """ #?????????????????? | | ###+########## % #??????# """ #?????????????????? | | % #??????#! g #?????????????????? | | #??????# ] #?????????????????? | | #??????########?????????????????? | | ############## #???????????????????????????????? | | #????????????# #???????????????????????????????? | | #????????????# #???????????????????????????????? | | #????????????# #???????????????????????????????? | | #????????????# #???????????????????????????????? | | #????????????# #???????????????????????????????? | | #???????????? ???????????????????????????????? | | #???????????? ??????????????????????????????? | | #???????????? ??????????????????????????????? | | #????????????#######?????????????????????????????? | | #????????????????????????????????????????????????? | | ?????????????????????????????????????????????????? | | ?????????????????????????????????????????????????? | | ?????????????????????????????????????????????????? | | ?????????????????????????????????????????????????? | | ?????????????????????????????????????????????????? | | ?????????????????????????????????????????????????? | | ?????????????????????????????????????????????????? | +----------------------------------------------------+ Best States ------------- Heat Dissipation 25 Energy Generation 10 Energy Capacity 250 Matter Stores 300 Matter Capacity 300 Sight Range 16 Terrain Scan Density 10 Evasion (%) 40 Targeting Accuracy 5 Item Schematics ----------------- None Robot Schematics ------------------ None Fabricated ------------ Nothing Alien Tech Used ----------------- None Achievements -------------- None Challenges ------------ None Game ------ Seed EnhancedMetafieldShredder Manual? 0 Play Time 00:05:44 Cumulative 186.7 hours Start 2021.05.07 @ 15:14:42 End 2021.05.07 @ 15:18:54 Sessions 1 Manual Loads 0 Difficulty Rogue Special Mode None Game No. 371 Rogue 217 Adventurer 148 Explorer 6 Win Type - Total 3 Types 3/0/0/0/0/0/0/0/0 Lore% 72 Gallery% 82 Achievement% 60 Wizard Run 0 Options --------- ASCII 0 Keyboard 0 Movement Numpad Keybinds 0 Fullscreen 1 Font 18/CogNarrow Map View 76x50 Tactical HUD 1 Map Filters NONE Filters NONE Steam 1 RUN: aa7c560b-d0c1-4d7b-8ba9-b62350891574